bitfinex/quotes_SOLUSD_20260108
["timestamp","ask_amount","ask_price","bid_price","bid_amount"]
[1767882644277,0.69235398,133.79,133.74,5.61516098]
[1767882644481,6.30751496,133.79,133.74,5.61516098]
[1767882644689,0.69235398,133.79,133.74,5.61516098]
[1767882644896,5.61516098,133.77,133.73,19.25516098]
[1767882645097,6.30751496,133.78,133.73,19.97657644]
[1767882645289,5.61516098,133.78,133.73,21.83896555]
[1767882645493,5.61516098,133.78,133.7,7.47929699]
[1767882645494,5.61516098,133.74,133.7,7.47929699]
[1767882645684,5.61516098,133.74,133.69,6.33657644]
[1767882645685,6.30751496,133.74,133.69,6.33657644]
[1767882646007,0.69235398,133.74,133.69,0.72141546]
[1767882646186,6.30751496,133.76,133.7,0.72141546]
[1767882646498,0.69235398,133.76,133.71,5.61516098]
[1767882646703,0.69235398,133.76,133.72,5.61516098]
[1767882647017,6.30751496,133.75,133.71,5.61516098]
[1767882647181,0.69235398,133.75,133.71,13.09356651]
[1767882647679,0.69235398,133.77,133.73,5.61516098]
[1767882647878,8.16578148,133.81,133.76,5.61516098]
[1767882648078,0.69235398,133.81,133.77,5.61516098]
[1767882648301,6.30751496,133.82,133.75,0.28432314]
[1767882648605,0.69235398,133.81,133.76,0.72141546]
[1767882648980,5.61516098,133.78,133.73,0.72141546]
[1767882649199,0.69235398,133.78,133.74,5.61516098]
[1767882649500,0.69235398,133.78,133.75,5.61516098]
[1767882649877,5.61516098,133.79,133.75,5.61516098]
[1767882650095,6.30751496,133.8,133.75,5.61516098]
[1767882650294,0.69235398,133.8,133.75,5.61516098]
[1767882650576,0.69235398,133.81,133.75,0.72141546]
[1767882650797,0.69235398,133.81,133.77,5.61516098]
[1767882651299,6.30751496,133.81,133.76,13.64]
[1767882651603,7.4722199,133.83,133.76,13.64]
[1767882651604,6.30751496,133.79,133.76,13.64]
[1767882651797,6.30751496,133.79,133.74,7.47706255]
[1767882651982,6.30751496,133.79,133.74,13.09222353]
[1767882652182,0.69235398,133.79,133.75,13.0917813]
[1767882652398,0.69235398,133.78,133.74,7.47704603]
[1767882652706,0.69235398,133.74,133.69,0.72141546]
[1767882652916,0.69235398,133.72,133.67,0.72141546]
[1767882653085,9.14747981,133.69,133.66,0.1]
[1767882653283,0.69235398,133.7,133.66,9.24747981]
[1767882653504,0.69235398,133.72,133.68,9.24747981]
[1767882653680,9.14747981,133.73,133.68,0.1]
[1767882653880,9.83983379,133.74,133.69,9.14747981]
[1767882654086,0.69235398,133.74,133.68,0.1]
[1767882654299,0.69235398,133.73,133.7,9.14747981]
[1767882654504,0.69235398,133.73,133.68,0.24216157]
[1767882654713,17.31654248,133.75,133.7,9.14747981]
[1767882654894,17.31654248,133.75,133.69,0.72141546]
[1767882654895,9.83983379,133.75,133.69,0.72141546]
[1767882655101,9.83983379,133.73,133.68,13.88216157]
[1767882655410,9.83983379,133.73,133.69,9.14747981]
[1767882656020,9.14747981,133.72,133.68,9.24747981]
[1767882656221,9.83983379,133.72,133.68,0.1]
[1767882656389,8.16962499,133.74,133.68,7.58053513]
[1767882656588,0.69235398,133.74,133.69,9.14747981]
[1767882656799,9.83983379,133.76,133.71,9.14747981]
[1767882656995,0.69235398,133.76,133.72,9.14747981]
[1767882657308,0.69235398,133.76,133.73,9.14747981]
[1767882657511,7.47517852,133.78,133.73,9.14747981]
[1767882657512,0.69235398,133.78,133.75,9.14747981]
[1767882657697,0.69235398,133.78,133.74,9.14747981]
[1767882657895,9.83983379,133.78,133.74,9.14747981]
[1767882658218,0.69235398,133.77,133.74,9.14747981]
[1767882658692,0.69235398,133.79,133.75,9.14747981]
[1767882658894,0.69235398,133.8,133.77,9.14747981]
[1767882659988,0.69235398,133.8,133.76,7.47556676]
[1767882660311,0.69235398,133.8,133.76,16.62304657]
[1767882660516,0.69235398,133.77,133.73,9.14747981]
[1767882660696,9.14747981,133.77,133.73,16.62517777]
[1767882661013,8.16525153,133.82,133.76,9.14747981]
[1767882661213,0.69235398,133.82,133.78,9.14747981]
[1767882661416,0.69235398,133.86,133.8,0.72141546]
[1767882661615,0.69235398,133.91,133.83,0.72141546]
[1767882661912,9.14747981,133.9,133.86,9.14747981]
[1767882662112,9.83983379,133.87,133.82,0.14216157]
[1767882662285,9.82288012,133.84,133.81,0.72141546]
[1767882662491,9.14747981,133.85,133.81,9.86889527]
[1767882662689,0.67540031,133.82,133.75,7.47648795]
[1767882662914,0.67540031,133.81,133.75,16.62396776]
[1767882663213,0.67540031,133.81,133.75,16.62399222]
[1767882663396,9.14747981,133.8,133.75,16.62399222]
[1767882663597,0.67540031,133.81,133.75,16.62399222]
[1767882663794,0.67540031,133.83,133.78,9.14747981]
[1767882663997,0.67540031,133.83,133.76,0.28432314]
[1767882664193,0.67540031,133.83,133.79,9.14747981]
[1767882664512,9.82288012,133.8,133.75,16.62399222]
[1767882664815,0.67540031,133.75,133.69,13.64]
[1767882665016,9.82288012,133.74,133.68,18.80058625]
[1767882665311,26.1527185,133.83,133.68,0.1]
[1767882665312,9.14747981,133.71,133.68,0.1]
[1767882665511,0.67540031,133.72,133.66,0.1]
[1767882665512,0.67540031,133.68,133.66,0.1]
[1767882665690,0.67540031,133.68,133.62,0.1]
[1767882666016,0.67540031,133.7,133.62,19.31280122]
[1767882666196,9.14747981,133.67,133.63,7.48334445]
[1767882666393,0.67540031,133.69,133.63,9.14747981]
[1767882666586,9.82563963,133.69,133.62,0.60391743]
[1767882666787,0.67815982,133.67,133.63,9.14747981]
[1767882667015,26.17413788,133.72,133.62,0.1]
[1767882667016,9.82563963,133.65,133.62,0.1]
[1767882667200,0.67815982,133.65,133.62,0.1]
[1767882667411,0.67815982,133.62,133.61,0.1]
[1767882667599,0.67815982,133.66,133.61,0.1]
[1767882667790,9.82563963,133.64,133.61,0.1]
[1767882667994,9.14747981,133.65,133.61,0.1]
[1767882668514,9.14747981,133.64,133.61,0.1]
[1767882669016,0.67815982,133.62,133.61,0.1]
[1767882669206,9.14747981,133.64,133.61,0.1]
[1767882669517,0.67815982,133.65,133.61,0.1]
[1767882669689,9.14747981,133.62,133.61,0.1]
[1767882669887,9.82563963,133.62,133.57,16.63413471]
[1767882670090,26.18601764,133.66,133.53,3.89516628]
[1767882670091,9.14747981,133.58,133.53,3.89516628]
[1767882670303,0.62452356,133.56,133.51,13.66]
[1767882670512,13.66,133.62,133.55,9.14747981]
[1767882670689,6.6801107,133.65,133.55,7.48780915]
[1767882670895,20.3401107,133.65,133.58,9.14747981]
[1767882671113,13.66,133.65,133.56,0.28432314]
[1767882671416,25.10557671,133.74,133.56,0.28432314]
[1767882671417,7.48111019,133.67,133.58,16.63363043]
[1767882671603,26.18388568,133.67,133.59,9.14747981]
[1767882671800,9.14747981,133.64,133.58,7.48615062]
[1767882672000,9.14747981,133.63,133.58,9.14747981]
[1767882672192,39.84388568,133.67,133.57,8.48209231]
[1767882672392,0.67815982,133.62,133.56,7.48716845]
[1767882672713,0.67815982,133.62,133.57,7.48670534]
[1767882673010,9.82563963,133.61,133.55,7.48727872]
[1767882673196,8.16033873,133.66,133.59,9.14747981]
[1767882673401,9.82563963,133.64,133.59,9.14747981]
[1767882673600,9.14747981,133.63,133.59,16.63294052]
[1767882674305,9.14747981,133.63,133.57,19.71231552]
[1767882674306,0.67815982,133.63,133.57,0.28432314]
[1767882674508,7.48217891,133.66,133.61,9.14747981]
[1767882674699,7.48217891,133.66,133.59,8.48108919]
[1767882674700,9.82563963,133.64,133.6,9.14747981]
[1767882674902,0.67815982,133.64,133.61,9.14747981]
[1767882675101,0.67815982,133.64,133.59,7.48555138]
[1767882675315,0.67815982,133.64,133.58,7.48615062]
[1767882675519,0.67815982,133.6,133.55,7.48771573]
[1767882675812,9.14747981,133.61,133.57,9.14747981]
[1767882675987,9.14747981,133.61,133.56,7.48708831]
[1767882675988,0.67815982,133.61,133.56,7.48708831]
[1767882676192,26.18976401,133.64,133.54,7.48836768]
[1767882676193,0.67815982,133.6,133.54,7.48836768]
[1767882676398,0.67815982,133.58,133.53,9.14747981]
[1767882676610,6.96443384,133.63,133.55,9.14747981]
[1767882676611,9.14747981,133.59,133.55,9.14747981]
[1767882676921,9.14747981,133.59,133.54,7.48800615]
[1767882676922,9.14747981,133.56,133.51,13.66]
[1767882677112,0.67815982,133.59,133.52,7.48944153]
[1767882677427,9.82563963,133.55,133.5,21.15046194]
[1767882677591,0.67815982,133.55,133.52,9.14747981]
[1767882677791,0.67815982,133.59,133.54,9.14747981]
[1767882677996,0.67815982,133.59,133.53,7.48875636]
[1767882678197,0.67815982,133.58,133.53,7.48875636]
[1767882678396,9.82563963,133.61,133.54,0.99553781]
[1767882678605,0.67815982,133.6,133.56,9.14747981]
[1767882678821,14.33815982,133.62,133.57,9.14747981]
[1767882679008,9.82563963,133.61,133.55,0.71121467]
[1767882679206,0.67815982,133.56,133.51,7.48966325]
[1767882679416,0.28432314,133.61,133.49,0.71121467]
[1767882679417,0.67815982,133.54,133.49,7.49114446]
[1767882679618,0.67815982,133.56,133.5,0.71121467]
[1767882679927,0.67815982,133.63,133.56,0.71121467]
[1767882680134,0.67815982,133.69,133.62,9.85869448]
[1767882680424,13.66,133.73,133.64,0.71121467]
[1767882680595,0.67815982,133.71,133.67,9.14747981]
[1767882680799,0.67815982,133.75,133.66,0.71121467]
[1767882681112,0.67815982,133.75,133.67,0.85337624]
[1767882681322,0.67815982,133.75,133.73,9.14747981]
[1767882681638,0.67815982,133.75,133.7,7.47935553]
[1767882681809,0.67815982,133.75,133.7,7.4793244]
[1767882682007,0.67815982,133.75,133.63,0.71121467]
[1767882682008,0.67815982,133.72,133.63,0.71121467]
[1767882682319,0.67815982,133.71,133.65,18.70524351]
[1767882682521,9.82563963,133.71,133.66,7.48159101]
[1767882682699,0.67815982,133.68,133.61,0.71121467]
[1767882682899,9.82563963,133.66,133.61,7.48441789]
[1767882683099,0.67815982,133.66,133.62,7.48349198]
[1767882683303,0.67815982,133.7,133.61,0.71121467]
[1767882683520,0.67815982,133.69,133.62,9.14747981]
[1767882683699,0.67815982,133.69,133.65,9.14747981]
[1767882683907,9.82563963,133.66,133.62,7.48388868]
[1767882684102,7.47958961,133.7,133.63,7.48334918]
[1767882684312,9.14747981,133.68,133.63,7.48334918]
[1767882684519,13.66,133.73,133.64,10.00085605]
[1767882684824,9.14747981,133.72,133.67,9.14747981]
[1767882685125,7.47789008,133.73,133.67,9.14747981]
[1767882685306,9.14747981,133.7,133.65,8.19314661]
[1767882685511,9.14747981,133.69,133.65,7.48193194]
[1767882685720,7.47831289,133.72,133.66,9.14747981]
[1767882685920,9.14747981,133.69,133.64,7.48269971]
[1767882686127,9.14747981,133.68,133.64,16.63017952]
[1767882686307,7.47831289,133.72,133.64,16.63017952]
[1767882686308,21.81597278,133.73,133.67,9.14747981]
[1767882686618,0.67815982,133.72,133.66,0.71121467]
[1767882686820,9.82563963,133.71,133.66,9.14747981]
[1767882687024,9.14747981,133.69,133.64,8.19390501]
[1767882687340,9.14747981,133.66,133.64,0.71121467]
[1767882687506,9.14747981,133.65,133.58,9.14747981]
[1767882687706,0.28432314,133.65,133.56,9.14747981]
[1767882687925,9.14747981,133.63,133.57,7.48666414]
[1767882688156,9.14747981,133.62,133.57,16.63414395]
[1767882688434,13.66,133.66,133.57,7.48666414]
[1767882688616,13.66,133.66,133.61,9.14747981]
[1767882688820,22.80747981,133.66,133.61,9.14747981]
[1767882689051,14.33815982,133.66,133.62,9.14747981]
[1767882689339,14.33815982,133.66,133.61,9.14747981]
[1767882689340,0.67815982,133.66,133.61,9.14747981]
[1767882689518,9.82563963,133.65,133.6,16.63204667]
[1767882689709,0.67815982,133.65,133.61,16.63190357]
[1767882689907,9.14747981,133.66,133.61,7.48442376]
[1767882690124,21.13998201,133.7,133.63,9.14747981]
[1767882690438,0.28432314,133.69,133.6,7.48486069]
[1767882690686,0.28432314,133.69,133.59,16.63292859]
[1767882690810,0.28432314,133.69,133.6,16.63246359]
[1767882691012,0.28432314,133.69,133.58,0.99553781]
[1767882691013,9.14747981,133.65,133.61,7.48443904]
[1767882691312,9.14747981,133.65,133.6,9.14747981]
[1767882691532,9.14747981,133.66,133.62,9.14747981]
[1767882691744,26.18192698,133.68,133.64,9.14747981]
[1767882691745,9.14747981,133.68,133.64,9.14747981]
[1767882691907,0.67815982,133.7,133.65,9.14747981]
[1767882692107,18.69642236,133.72,133.66,0.71121467]
[1767882692108,9.82563963,133.72,133.66,0.71121467]
[1767882692323,9.85411252,133.74,133.69,9.14747981]
[1767882692619,18.69074352,133.76,133.65,0.28432314]
[1767882692620,0.70663271,133.73,133.65,0.28432314]
[1767882692932,21.84289087,133.76,133.69,9.14747981]
[1767882693136,9.14747981,133.73,133.67,0.72303707]
[1767882693325,0.70663271,133.73,133.69,9.14747981]
[1767882693523,7.47709729,133.75,133.71,9.14747981]
[1767882693524,0.70663271,133.75,133.71,9.14747981]
[1767882693728,9.14747981,133.76,133.72,9.14747981]
[1767882694514,0.70663271,133.79,133.74,9.14747981]
[1767882694819,0.2,133.85,133.78,9.87051688]
[1767882695036,0.2,133.85,133.82,9.14747981]
[1767882695340,0.2,133.85,133.83,9.14747981]
[1767882695517,0.2,133.85,133.8,7.47371765]
[1767882695738,0.70663271,133.84,133.78,7.47447532]
[1767882695926,9.14747981,133.81,133.77,0.72303707]
[1767882696132,0.70663271,133.83,133.77,0.72303707]
[1767882696346,0.70663271,133.83,133.77,8.19846746]
[1767882696563,0.70663271,133.83,133.79,9.14747981]
[1767882696742,0.2,133.85,133.82,9.14747981]
[1767882696937,9.14747981,133.84,133.8,9.14747981]
[1767882697144,9.14747981,133.83,133.78,9.14747981]
[1767882697331,0.70663271,133.83,133.77,16.6229102]
[1767882697654,9.14747981,133.82,133.77,9.14747981]
[1767882697848,0.70663271,133.83,133.78,9.14747981]
[1767882698033,17.32643627,133.83,133.78,9.14747981]
[1767882698234,8.17895646,133.83,133.77,9.14747981]
[1767882698449,9.14747981,133.82,133.76,0.72303707]
[1767882698660,9.14747981,133.82,133.78,9.14747981]
[1767882698847,9.14747981,133.82,133.74,0.28432314]
[1767882698848,9.85411252,133.81,133.74,0.72303707]
[1767882699033,9.85411252,133.8,133.74,0.72303707]
[1767882699234,0.70663271,133.79,133.74,9.14747981]
[1767882699455,17.32853635,133.79,133.74,9.14747981]
[1767882699752,7.47396974,133.8,133.75,9.14747981]
[1767882699943,7.47396974,133.8,133.76,9.14747981]
[1767882699944,9.14747981,133.8,133.76,9.14747981]
[1767882700137,0.2,133.85,133.78,9.14747981]
[1767882700339,0.2,133.85,133.83,9.14747981]
[1767882700539,0.2,133.85,133.81,0.72303707]
[1767882700852,9.14747981,133.84,133.8,9.14747981]
[1767882701051,7.67113958,133.85,133.78,0.72303707]
[1767882701052,0.2,133.85,133.81,9.14747981]
[1767882701427,0.2,133.85,133.83,9.14747981]
[1767882701633,18.6678614,133.92,133.82,0.72303707]
[1767882701849,9.14747981,133.87,133.82,0.72303707]
[1767882702050,9.14747981,133.85,133.8,8.33886721]
[1767882702259,9.14747981,133.87,133.82,9.14747981]
[1767882702464,0.18223516,133.88,133.82,9.14747981]
[1767882702633,9.14747981,133.87,133.82,9.14747981]
[1767882702830,0.18223516,133.88,133.81,0.72303707]
[1767882703156,9.14747981,133.82,133.77,0.72303707]
[1767882703353,9.14747981,133.81,133.77,0.72303707]
[1767882703651,9.14747981,133.81,133.77,9.87051688]
[1767882703855,7.47278113,133.82,133.77,9.87051688]
[1767882704074,9.14747981,133.78,133.73,8.20024763]
[1767882704361,9.14747981,133.78,133.67,147.36922555]
[1767882704362,9.14747981,133.76,133.71,9.14747981]
[1767882704542,9.14747981,133.75,133.72,0.72303707]
[1767882704744,9.14747981,133.76,133.72,0.72303707]
[1767882704942,0.18223516,133.79,133.72,0.72303707]
[1767882705142,0.18223516,133.79,133.72,9.14747981]
[1767882705351,9.14747981,133.76,133.71,7.47869402]
[1767882705536,7.47495888,133.78,133.73,9.87051688]
[1767882705731,9.14747981,133.78,133.73,9.87051688]
[1767882705956,14.65095585,133.84,133.76,9.87051688]
[1767882706253,9.14747981,133.81,133.76,9.87051688]
[1767882706457,9.14747981,133.8,133.76,0.72303707]
[1767882706632,18.86296036,133.83,133.75,1.00736021]
[1767882706633,0.70138873,133.82,133.75,1.00736021]
[1767882706832,9.14747981,133.82,133.74,0.72303707]
[1767882707034,9.14747981,133.8,133.75,9.87051688]
[1767882707232,0.69624911,133.8,133.73,9.87051688]
[1767882707434,9.14747981,133.8,133.76,9.14747981]
[1767882707657,9.14747981,133.81,133.77,9.14747981]
[1767882707855,9.14747981,133.79,133.74,8.20004754]
[1767882708170,9.14747981,133.78,133.74,0.72303707]
[1767882708338,0.1874267,133.81,133.74,0.72303707]
[1767882708539,0.69624911,133.79,133.72,0.72303707]
[1767882708749,9.14747981,133.76,133.72,0.72303707]
[1767882708956,9.14747981,133.76,133.72,17.34876826]
[1767882709162,9.14747981,133.77,133.73,8.20063383]
[1767882709345,13.66,133.8,133.73,17.34805436]
[1767882709657,9.14747981,133.79,133.74,9.87051688]
[1767882709841,9.14747981,133.77,133.72,17.34865472]
[1767882710358,21.13387012,133.8,133.74,9.14747981]
[1767882710542,9.14747981,133.77,133.73,0.72303707]
[1767882710745,9.14747981,133.75,133.69,19.42282953]
[1767882711056,9.14747981,133.75,133.7,7.47925414]
[1767882711375,13.66,133.79,133.73,16.62521356]
[1767882711676,9.14747981,133.77,133.72,8.20117246]
[1767882711962,21.13470606,133.79,133.73,16.62508109]
[1767882711963,21.31694122,133.79,133.73,16.62508109]
[1767882712265,13.66,133.79,133.74,9.87051688]
[1767882712554,9.14747981,133.77,133.73,9.87051688]
[1767882712856,9.14747981,133.77,133.73,8.20077222]
[1767882713063,9.84372892,133.77,133.73,0.72303707]
[1767882713273,0.69121177,133.75,133.73,0.72303707]
[1767882713480,9.14747981,133.75,133.7,9.14747981]
[1767882713653,9.14747981,133.73,133.66,14.38816699]
[1767882713965,9.14747981,133.73,133.68,9.14747981]
[1767882714262,9.14747981,133.72,133.67,16.62841029]
[1767882714561,5.63372269,133.72,133.67,13.11465317]
[1767882714772,5.63372269,133.74,133.69,13.11341131]
[1767882714951,5.63372269,133.72,133.65,18.70514102]
[1767882715134,5.63372269,133.72,133.67,5.63372269]
[1767882715338,0.24613712,133.74,133.68,13.11413213]
[1767882715539,5.63372269,133.73,133.69,5.63372269]
[1767882715734,13.66,133.75,133.69,6.35675976]
[1767882715977,5.63372269,133.75,133.7,6.35675976]
[1767882716135,5.63372269,133.75,133.7,0.72303707]
[1767882716337,13.10924389,133.77,133.72,5.63372269]
[1767882716545,13.10924389,133.77,133.72,6.35675976]
[1767882716746,5.63372269,133.77,133.72,6.35675976]
[1767882716954,13.10926046,133.77,133.72,6.35675976]
[1767882717148,7.47453203,133.79,133.74,6.35675976]
[1767882717340,5.63372269,133.78,133.74,6.35675976]
[1767882717842,0.70198171,133.79,133.72,8.20118744]
[1767882718150,0.70198171,133.79,133.74,5.63372269]
[1767882718351,7.47350616,133.81,133.76,5.63372269]
[1767882718549,18.68248058,133.82,133.77,0.72303707]
[1767882718550,13.10668633,133.82,133.77,0.72303707]
[1767882718746,5.63372269,133.81,133.74,26.17012248]
[1767882718962,7.47296364,133.82,133.77,5.63372269]
[1767882719260,5.63372269,133.81,133.77,5.63372269]
[1767882719463,8.17474113,133.83,133.77,13.10893745]
[1767882719464,5.63372269,133.82,133.77,13.10893745]
[1767882719661,7.47216618,133.83,133.79,5.63372269]
[1767882719862,0.70663271,133.87,133.82,5.63372269]
[1767882720046,0.70663271,133.87,133.82,5.57381861]
[1767882720358,5.63372269,133.85,133.78,13.66]
[1767882720557,39.80086189,133.89,133.78,13.66]
[1767882720558,26.8474946,133.89,133.83,5.63372269]
[1767882720744,5.63372269,133.87,133.83,5.63372269]
[1767882721062,5.63372269,133.91,133.86,6.35675976]
[1767882721266,5.63372269,133.92,133.87,5.63372269]
[1767882721566,0.2,133.97,133.92,0.72303707]
[1767882721766,0.2,133.99,133.91,5.63372269]
[1767882721767,0.2,133.99,133.96,0.72303707]
[1767882722064,0.69704774,133.98,133.92,0.28432314]
[1767882722254,0.69704774,133.98,133.91,0.72303707]
[1767882722454,5.63372269,133.97,133.91,0.72303707]
[1767882722643,5.63372269,133.94,133.89,5.63372269]
[1767882722841,0.69714072,133.95,133.88,0.70604421]
[1767882723048,0.72343581,133.97,133.91,5.63372269]
[1767882723344,0.68022103,133.96,133.9,0.70604421]
[1767882723558,5.63372269,133.95,133.91,5.63372269]
[1767882723767,5.63372269,133.95,133.9,8.17404655]
[1767882723768,5.63372269,133.95,133.9,6.3397669]
[1767882723984,6.35672635,133.95,133.9,13.1016286]
[1767882724268,0.68064885,133.94,133.88,0.28432314]
[1767882724577,5.63372269,133.91,133.86,0.70604421]
[1767882724760,0.72343581,133.93,133.82,6.6801107]
[1767882724761,5.63372269,133.88,133.82,8.17837654]
[1767882724960,5.63372269,133.88,133.72,43.28655398]
[1767882724961,5.63372269,133.85,133.81,5.63372269]
[1767882725161,13.64,133.88,133.78,7.47494373]
[1767882725471,5.63372269,133.86,133.81,5.63372269]
[1767882725669,13.64,133.89,133.83,0.69096112]
[1767882725873,13.64,133.89,133.82,0.69096112]
[1767882725874,5.63372269,133.86,133.82,0.69096112]
[1767882726066,5.63372269,133.88,133.83,5.63372269]
[1767882726265,13.64,133.89,133.84,5.63372269]
[1767882726567,26.74256096,133.89,133.84,5.63372269]
[1767882726748,5.63372269,133.89,133.85,5.63372269]
[1767882726943,5.63372269,133.89,133.83,0.69096112]
[1767882727162,5.63372269,133.89,133.84,5.63372269]
[1767882727464,5.63372269,133.9,133.85,5.63372269]
[1767882727672,5.63372269,133.89,133.84,7.47154697]
[1767882727845,6.32046752,133.9,133.86,5.63372269]
[1767882728047,18.66697213,133.93,133.86,0.69096112]
[1767882728048,0.68674483,133.93,133.86,0.69096112]
[1767882728248,13.64,133.99,133.89,5.63372269]
[1767882728249,0.68674483,133.95,133.89,5.63372269]
[1767882728456,6.32046752,133.95,133.88,0.69096112]
[1767882728657,5.63372269,133.93,133.88,6.32468381]
[1767882728868,0.68674483,133.95,133.89,5.63372269]
[1767882729062,5.63372269,133.94,133.89,5.63372269]
[1767882729371,5.63372269,133.93,133.88,6.32468381]
[1767882729572,8.15225663,133.95,133.9,5.63372269]
[1767882729751,13.64,133.97,133.92,5.63372269]
[1767882729752,5.63372269,133.97,133.92,5.63372269]
[1767882729949,5.63372269,133.95,133.89,7.75310417]
[1767882730163,5.63372269,133.95,133.9,5.63372269]
[1767882730476,0.2,134.0,133.9,5.63372269]
[1767882730477,0.2,134.0,133.95,0.69096112]
[1767882730650,0.2,134.0,133.97,0.69096112]
[1767882730965,0.2,134.01,133.99,5.63372269]
[1767882731174,0.2,134.01,134.0,5.63372269]
[1767882731384,0.2,134.01,133.97,0.97528426]
[1767882731669,0.2,134.01,133.97,0.69096112]
[1767882731855,0.2,134.01,133.98,5.63372269]
[1767882732174,7.66219006,134.01,133.98,5.63372269]
[1767882732473,6.32046752,134.0,133.93,21.79739673]
[1767882732658,6.32046752,133.99,133.94,5.63372269]
[1767882733173,0.68674483,133.99,133.94,5.63372269]
[1767882733380,0.68674483,133.99,133.95,5.63372269]
[1767882733593,0.68674483,133.99,133.93,8.15739375]
[1767882733594,13.78385528,133.99,133.94,5.63372269]
[1767882733882,0.68674483,133.99,133.95,5.63372269]
[1767882734082,0.2,134.01,133.98,5.63372269]
[1767882734282,0.68674483,133.98,133.92,6.6801107]
[1767882734474,6.32046752,133.98,133.91,0.69096112]
[1767882734674,5.63372269,133.98,133.94,5.63372269]
[1767882734854,5.63372269,133.98,133.93,0.69096112]
[1767882735062,5.63372269,133.95,133.91,6.32468381]
[1767882735264,5.63372269,133.96,133.91,6.32468381]
[1767882735563,5.63372269,133.95,133.9,13.10190471]
[1767882735771,13.09948737,133.95,133.89,0.69096112]
[1767882735958,13.09948737,133.95,133.9,5.63372269]
[1767882736359,5.63372269,133.95,133.9,7.46822807]
[1767882736560,5.8683904,133.94,133.86,19.36657554]
[1767882736764,5.63372269,133.91,133.86,0.69096112]
[1767882736998,5.63372269,133.93,133.89,5.63372269]
[1767882737185,0.68674483,133.94,133.87,0.69096112]
[1767882737479,5.63372269,133.92,133.87,6.32468381]
[1767882737666,0.68674483,133.93,133.87,8.16042703]
[1767882737868,5.63372269,133.92,133.88,5.63372269]
[1767882738181,5.63372269,133.9,133.86,13.10404252]
[1767882738356,6.32046752,133.89,133.82,0.74727245]
[1767882738562,0.68674483,133.92,133.85,0.69096112]
[1767882738763,5.63372269,133.91,133.86,13.10419848]
[1767882738977,6.32046752,133.92,133.87,5.63372269]
[1767882739179,8.15296467,133.94,133.88,5.63372269]
[1767882739494,5.63372269,133.9,133.85,6.32468381]
[1767882739673,6.32046752,133.91,133.86,13.10416635]
[1767882740079,8.1546821,133.91,133.85,13.79556246]
[1767882740278,0.68674483,133.89,133.84,0.28432314]
[1767882740584,5.63372269,133.85,133.81,5.63372269]
[1767882740785,0.68674483,133.87,133.81,13.79762402]
[1767882740977,5.63372269,133.84,133.79,0.69096112]
[1767882741181,0.68674483,133.84,133.77,0.69096112]
[1767882741373,0.68674483,133.84,133.79,5.63372269]
[1767882741575,0.68674483,133.84,133.78,5.63372269]
[1767882741576,13.10636968,133.83,133.78,5.63372269]
[1767882741770,5.63372269,133.82,133.77,6.32468381]
[1767882741968,5.63372269,133.81,133.74,19.38326739]
[1767882742169,0.68674483,133.82,133.76,5.63372269]
[1767882742489,5.63372269,133.87,133.81,6.32468381]
[1767882742694,0.68674483,133.88,133.82,5.63372269]
[1767882743000,0.68674483,133.9,133.84,5.63372269]
[1767882743172,6.32046752,133.88,133.81,0.69096112]
[1767882743374,5.63372269,133.86,133.82,5.63372269]
[1767882743580,5.63372269,133.86,133.8,0.28432314]
[1767882743581,7.46993351,133.87,133.83,5.63372269]
[1767882743779,8.15627653,133.88,133.84,5.63372269]
[1767882744005,13.78999922,133.88,133.83,5.63372269]
[1767882744291,0.68674483,133.88,133.84,5.63372269]
[1767882744675,13.7888416,133.9,133.85,5.63372269]
[1767882744878,6.32046752,133.89,133.84,5.63372269]
[1767882745191,13.64,133.91,133.86,5.63372269]
[1767882745192,6.32046752,133.91,133.86,5.63372269]
[1767882745392,6.32046752,133.91,133.83,27.12785489]
[1767882745393,0.68674483,133.91,133.87,5.63372269]
[1767882745577,13.78723029,133.93,133.88,5.63372269]
[1767882745775,13.78723029,133.93,133.87,7.46968436]
[1767882745776,5.63372269,133.92,133.87,5.63372269]
[1767882745973,6.32046752,133.93,133.88,13.10293952]
[1767882746193,5.63372269,133.92,133.87,13.10363934]
[1767882746492,0.68674483,133.91,133.85,5.63372269]
[1767882746693,26.13306937,133.93,133.81,19.37399001]
[1767882746694,5.63372269,133.87,133.81,19.37399001]
[1767882746884,5.63372269,133.89,133.84,5.63372269]
[1767882747194,0.68674483,133.92,133.86,5.63372269]
[1767882747398,0.68674483,133.97,133.91,5.63372269]
[1767882747588,6.32046752,133.96,133.92,5.63372269]
[1767882747890,0.68674483,133.96,133.92,5.63372269]
[1767882748209,0.68674483,133.98,133.95,5.63372269]
[1767882748381,6.32046752,133.97,133.92,5.63372269]
[1767882748569,46.08202012,133.99,133.92,0.69096112]
[1767882748892,6.32046752,133.97,133.92,5.63372269]
[1767882749084,5.63372269,133.95,133.9,7.46818384]
[1767882749390,0.68674483,133.97,133.93,5.63372269]
[1767882749592,5.63372269,133.98,133.94,5.63372269]
[1767882749897,7.46435769,133.97,133.93,5.63372269]